[Event "Early-Titled-Tuesday-Blitz-June-18-2024"]
[Site "Chess.com"]
[Date "2024.06.18"]
[Round "10"]
[White "myburger"]
[Black "ab-lsv"]
[Result "1-0"]
[WhiteElo "2516"]
[BlackElo "2341"]
[TimeControl "180+1"]
[EndTime "9:56:17 PDT"]
[Termination "myburger won on time"]

1. d4 {[%clk 0:03:00.1]} 1... d5 {[%clk 0:02:59.9]} 2. Nc3 {[%clk 0:02:59]} 2...
Nf6 {[%clk 0:02:58.4]} 3. Bf4 {[%clk 0:02:59.7]} 3... c5 {[%clk 0:02:58.5]} 4.
e4 {[%clk 0:02:59.2]} 4... Nxe4 {[%clk 0:02:57.8]} 5. Nxe4 {[%clk 0:02:56.2]}
5... dxe4 {[%clk 0:02:58]} 6. dxc5 {[%clk 0:02:56.3]} 6... Nd7 {[%clk
0:02:52.9]} 7. Qd4 {[%clk 0:02:35.6]} 7... e5 {[%clk 0:02:36.6]} 8. Qxe4 {[%clk
0:02:24.5]} 8... Bxc5 {[%clk 0:02:08.9]} 9. O-O-O {[%clk 0:02:15.4]} 9... O-O
{[%clk 0:01:45]} 10. Bxe5 {[%clk 0:02:12.3]} 10... Bxf2 {[%clk 0:01:33.1]} 11.
Nh3 {[%clk 0:02:05.9]} 11... Bb6 {[%clk 0:01:17.1]} 12. Bc4 {[%clk 0:01:46.7]}
12... Qe7 {[%clk 0:01:07.6]} 13. Rhe1 {[%clk 0:01:39.8]} 13... Nxe5 {[%clk
0:01:03.1]} 14. Qxe5 {[%clk 0:01:39.5]} 14... Qxe5 {[%clk 0:01:02.5]} 15. Rxe5
{[%clk 0:01:40.4]} 15... Bxh3 {[%clk 0:00:51.7]} 16. gxh3 {[%clk 0:01:41.3]}
16... Rad8 {[%clk 0:00:30.3]} 17. Re7 {[%clk 0:01:38.9]} 17... g6 {[%clk
0:00:19.8]} 18. Rf1 {[%clk 0:01:30.2]} 18... Kg7 {[%clk 0:00:11.5]} 19. Rfxf7+
{[%clk 0:01:22.5]} 19... Rxf7 {[%clk 0:00:11.3]} 20. Rxf7+ {[%clk 0:01:23.4]}
20... Kh6 {[%clk 0:00:11.6]} 21. b4 {[%clk 0:01:19]} 21... Be3+ {[%clk
0:00:10.4]} 22. Kb2 {[%clk 0:01:18.7]} 22... b5 {[%clk 0:00:06.7]} 23. Bd3
{[%clk 0:01:10.6]} 23... a6 {[%clk 0:00:06]} 24. a4 {[%clk 0:01:05.3]} 24...
bxa4 {[%clk 0:00:02.5]} 25. Bxa6 {[%clk 0:01:05.5]} 25... Rb8 {[%clk 0:00:01.3]}
26. Ka3 {[%clk 0:01:03.9]} 1-0

[Event "Early-Titled-Tuesday-Blitz-June-18-2024"]
[Site "Chess.com"]
[Date "2024.06.18"]
[Round "10"]
[White "Adar_07"]
[Black "Bob_2004"]
[Result "1-0"]
[WhiteElo "2815"]
[BlackElo "2766"]
[TimeControl "180+1"]
[EndTime "9:56:19 PDT"]
[Termination "Adar_07 won by checkmate"]

1. e4 {[%clk 0:03:00.9]} 1... c5 {[%clk 0:03:00.1]} 2. Nf3 {[%clk 0:02:57.2]}
2... Nf6 {[%clk 0:03:00.7]} 3. e5 {[%clk 0:02:53.9]} 3... Nd5 {[%clk 0:03:01]}
4. Bc4 {[%clk 0:02:53.7]} 4... Nb6 {[%clk 0:03:00.9]} 5. Bxf7+ {[%clk
0:02:51.1]} 5... Kxf7 {[%clk 0:03:01.8]} 6. Ng5+ {[%clk 0:02:51.4]} 6... Kg8
{[%clk 0:03:01.8]} 7. d4 {[%clk 0:02:48.2]} 7... cxd4 {[%clk 0:02:56.7]} 8. a4
{[%clk 0:02:45.2]} 8... e6 {[%clk 0:02:52.1]} 9. a5 {[%clk 0:02:45]} 9... Nd5
{[%clk 0:02:52.3]} 10. c4 {[%clk 0:02:40.2]} 10... dxc3 {[%clk 0:02:44.9]} 11.
Nxc3 {[%clk 0:02:39.4]} 11... Bb4 {[%clk 0:02:41.1]} 12. Ra4 {[%clk 0:02:39.5]}
12... Nc6 {[%clk 0:02:34.8]} 13. O-O {[%clk 0:02:38.5]} 13... Bxc3 {[%clk
0:01:50.1]} 14. bxc3 {[%clk 0:02:39.4]} 14... h6 {[%clk 0:01:50.3]} 15. c4
{[%clk 0:02:25.2]} 15... Nde7 {[%clk 0:01:18.3]} 16. Ne4 {[%clk 0:02:11.6]}
16... Nxa5 {[%clk 0:01:18.2]} 17. Qg4 {[%clk 0:02:05.4]} 17... Kh7 {[%clk
0:01:14.8]} 18. Bxh6 {[%clk 0:02:03.5]} 18... Kxh6 {[%clk 0:00:58.6]} 19. Ra3
{[%clk 0:02:03.2]} 19... g6 {[%clk 0:00:48.8]} 20. Qf4+ {[%clk 0:01:26.6]} 20...
Kg7 {[%clk 0:00:48.1]} 21. Qf6+ {[%clk 0:01:24]} 21... Kg8 {[%clk 0:00:47.8]}
22. Rf3 {[%clk 0:01:08.7]} 22... Rh7 {[%clk 0:00:35.9]} 23. Ng5 {[%clk 0:01:02]}
23... Rg7 {[%clk 0:00:29.6]} 24. Nf7 {[%clk 0:00:49.7]} 24... Qe8 {[%clk
0:00:23.2]} 25. Nh6+ {[%clk 0:00:49.4]} 25... Kh7 {[%clk 0:00:23.6]} 26. Rh3
{[%clk 0:00:49.9]} 26... Qf8 {[%clk 0:00:10.9]} 27. Nf7+ {[%clk 0:00:47.8]}
27... Kg8 {[%clk 0:00:10.7]} 28. Rh8# {[%clk 0:00:48.7]} 1-0

[Event "Early-Titled-Tuesday-Blitz-June-18-2024"]
[Site "Chess.com"]
[Date "2024.06.18"]
[Round "10"]
[White "temus_galaktionov"]
[Black "GeorgiosSouleidis"]
[Result "1-0"]
[WhiteElo "2859"]
[BlackElo "2706"]
[TimeControl "180+1"]
[EndTime "9:56:25 PDT"]
[Termination "temus_galaktionov won by resignation"]

1. d4 {[%clk 0:02:49.6]} 1... Nf6 {[%clk 0:02:59.7]} 2. c4 {[%clk 0:02:49.3]}
2... g6 {[%clk 0:02:59.8]} 3. Nf3 {[%clk 0:02:46.6]} 3... Bg7 {[%clk 0:03:00.3]}
4. Nc3 {[%clk 0:02:47]} 4... O-O {[%clk 0:03:01.2]} 5. e4 {[%clk 0:02:46.7]}
5... d6 {[%clk 0:03:01.6]} 6. Be2 {[%clk 0:02:47.4]} 6... e5 {[%clk 0:03:01.8]}
7. O-O {[%clk 0:02:47.9]} 7... Bg4 {[%clk 0:03:01.5]} 8. Be3 {[%clk 0:02:45.7]}
8... Bxf3 {[%clk 0:03:01.7]} 9. Bxf3 {[%clk 0:02:46.6]} 9... exd4 {[%clk
0:03:02.6]} 10. Bxd4 {[%clk 0:02:46.8]} 10... Nc6 {[%clk 0:03:03.5]} 11. Be3
{[%clk 0:02:47.1]} 11... Re8 {[%clk 0:03:04.1]} 12. Re1 {[%clk 0:02:46.1]} 12...
Nd7 {[%clk 0:03:04.5]} 13. Qd2 {[%clk 0:02:44.4]} 13... Bxc3 {[%clk 0:03:04.5]}
14. Qxc3 {[%clk 0:02:41.7]} 14... Qf6 {[%clk 0:03:05.1]} 15. Qd2 {[%clk
0:02:22.4]} 15... Nc5 {[%clk 0:03:01.9]} 16. Bg5 {[%clk 0:02:09.3]} 16... Qd4
{[%clk 0:02:56.2]} 17. Rad1 {[%clk 0:01:56.1]} 17... Qxd2 {[%clk 0:02:43.4]} 18.
Rxd2 {[%clk 0:01:57]} 18... Ne5 {[%clk 0:02:40.9]} 19. b3 {[%clk 0:01:51.1]}
19... Kg7 {[%clk 0:02:35.8]} 20. Re3 {[%clk 0:01:41.3]} 20... Nxf3+ {[%clk
0:02:15]} 21. gxf3 {[%clk 0:01:39.9]} 21... Ne6 {[%clk 0:02:03]} 22. Bh4 {[%clk
0:01:35.6]} 22... a5 {[%clk 0:01:59.6]} 23. Bg3 {[%clk 0:01:29.8]} 23... Nc5
{[%clk 0:01:50.1]} 24. e5 {[%clk 0:01:27]} 24... dxe5 {[%clk 0:01:41.9]} 25.
Bxe5+ {[%clk 0:01:26.6]} 25... f6 {[%clk 0:01:29.4]} 26. Bxc7 {[%clk 0:01:26.2]}
26... Ne6 {[%clk 0:01:20.9]} 27. Rd7+ {[%clk 0:01:21.4]} 27... Kh6 {[%clk
0:01:17.4]} 28. Bb6 {[%clk 0:01:17.3]} 28... a4 {[%clk 0:01:12.7]} 29. b4 {[%clk
0:01:17.1]} 29... Rab8 {[%clk 0:00:53.1]} 30. Kf1 {[%clk 0:01:12.9]} 30... g5
{[%clk 0:00:52.9]} 31. Rd6 {[%clk 0:01:09.4]} 31... Nf4 {[%clk 0:00:48.1]} 32.
Rxf6+ {[%clk 0:01:09.3]} 32... Kg7 {[%clk 0:00:48.3]} 33. Rd6 {[%clk 0:01:09.9]}
33... h5 {[%clk 0:00:38.7]} 34. h4 {[%clk 0:00:53.4]} 34... gxh4 {[%clk
0:00:36.9]} 35. Rd7+ {[%clk 0:00:53.1]} 35... Kg6 {[%clk 0:00:36.4]} 36. Bc7
{[%clk 0:00:53.6]} 1-0

[Event "Early-Titled-Tuesday-Blitz-June-18-2024"]
[Site "Chess.com"]
[Date "2024.06.18"]
[Round "10"]
[White "kingnb"]
[Black "AttilaTurzo"]
[Result "1-0"]
[WhiteElo "2699"]
[BlackElo "2467"]
[TimeControl "180+1"]
[EndTime "9:56:28 PDT"]
[Termination "kingnb won by resignation"]

1. d4 {[%clk 0:03:00.9]} 1... Nf6 {[%clk 0:02:59.5]} 2. Nf3 {[%clk 0:03:01.2]}
2... e6 {[%clk 0:02:57.5]} 3. Nbd2 {[%clk 0:03:00.3]} 3... d5 {[%clk 0:02:55.7]}
4. e3 {[%clk 0:02:57.7]} 4... c5 {[%clk 0:02:52.4]} 5. c3 {[%clk 0:02:55.2]}
5... Bd6 {[%clk 0:02:48.2]} 6. Bd3 {[%clk 0:02:51]} 6... O-O {[%clk 0:02:44.4]}
7. O-O {[%clk 0:02:49.2]} 7... Nc6 {[%clk 0:02:44.8]} 8. Qe2 {[%clk 0:02:42]}
8... e5 {[%clk 0:02:43.2]} 9. dxc5 {[%clk 0:02:40]} 9... Bxc5 {[%clk 0:02:41.6]}
10. e4 {[%clk 0:02:40.9]} 10... d4 {[%clk 0:02:26]} 11. Nb3 {[%clk 0:02:40]}
11... Bb6 {[%clk 0:02:07.5]} 12. cxd4 {[%clk 0:02:39.7]} 12... Nxd4 {[%clk
0:02:05.6]} 13. Nbxd4 {[%clk 0:02:36.6]} 13... Bxd4 {[%clk 0:02:05.7]} 14. Nxd4
{[%clk 0:02:35.9]} 14... Qxd4 {[%clk 0:02:06.6]} 15. Be3 {[%clk 0:02:35]} 15...
Qb4 {[%clk 0:01:59.6]} 16. Rac1 {[%clk 0:02:33.6]} 16... Qa4 {[%clk 0:01:55.8]}
17. Bc5 {[%clk 0:02:29.7]} 17... Rd8 {[%clk 0:01:48.2]} 18. Be7 {[%clk
0:02:28.4]} 18... Rd4 {[%clk 0:01:22.5]} 19. Bxf6 {[%clk 0:02:26.6]} 19... gxf6
{[%clk 0:01:22.2]} 20. Rxc8+ {[%clk 0:02:25.9]} 20... Rxc8 {[%clk 0:01:19.5]}
21. Qg4+ {[%clk 0:02:26.8]} 21... Kf8 {[%clk 0:01:10.3]} 22. Qxc8+ {[%clk
0:02:25.4]} 22... Kg7 {[%clk 0:01:10.7]} 23. Qg4+ {[%clk 0:02:07.6]} 23... Kf8
{[%clk 0:01:05.8]} 24. Bb1 {[%clk 0:02:07.9]} 24... Qc6 {[%clk 0:01:01.3]} 25.
h4 {[%clk 0:02:01.9]} 25... Rd2 {[%clk 0:00:58]} 26. b3 {[%clk 0:01:57.3]} 26...
Qc3 {[%clk 0:00:50]} 27. h5 {[%clk 0:01:55.3]} 27... h6 {[%clk 0:00:49.4]} 28.
Qf3 {[%clk 0:01:51.5]} 28... Qxf3 {[%clk 0:00:42.8]} 29. gxf3 {[%clk 0:01:52.4]}
29... Ke7 {[%clk 0:00:40.5]} 30. Rc1 {[%clk 0:01:51.8]} 30... Kd7 {[%clk
0:00:38.6]} 31. Kf1 {[%clk 0:01:51.7]} 31... Rb2 {[%clk 0:00:35.2]} 32. Bd3
{[%clk 0:01:47.2]} 32... Rxa2 {[%clk 0:00:33.4]} 33. Bc4 {[%clk 0:01:47.8]}
33... Ke7 {[%clk 0:00:29.7]} 34. Bd5 {[%clk 0:01:48.2]} 34... b6 {[%clk
0:00:29.7]} 35. Rc7+ {[%clk 0:01:46.6]} 35... Kd6 {[%clk 0:00:29.8]} 36. Rxf7
{[%clk 0:01:47.5]} 36... a5 {[%clk 0:00:30]} 37. Rxf6+ {[%clk 0:01:48.3]} 37...
Kc5 {[%clk 0:00:30.4]} 38. Rc6+ {[%clk 0:01:48.2]} 38... Kb5 {[%clk 0:00:29.2]}
39. Rxh6 {[%clk 0:01:48.8]} 39... Rd2 {[%clk 0:00:27.6]} 40. Re6 {[%clk
0:01:47.6]} 40... Kc5 {[%clk 0:00:27.2]} 41. h6 {[%clk 0:01:47.6]} 41... Rd1+
{[%clk 0:00:22]} 42. Kg2 {[%clk 0:01:47.1]} 42... a4 {[%clk 0:00:21.2]} 43. bxa4
{[%clk 0:01:46.7]} 43... b5 {[%clk 0:00:20.3]} 44. h7 {[%clk 0:01:46.8]} 44...
bxa4 {[%clk 0:00:19.8]} 45. h8=Q {[%clk 0:01:47.3]} 45... a3 {[%clk 0:00:20.3]}
46. Rc6+ {[%clk 0:01:47.3]} 46... Kd4 {[%clk 0:00:19.9]} 47. Qb8 {[%clk
0:01:47.9]} 47... a2 {[%clk 0:00:15.5]} 48. Qb2+ {[%clk 0:01:46.5]} 48... Kd3
{[%clk 0:00:10.6]} 49. Rc3+ {[%clk 0:01:47.4]} 1-0

[Event "Early-Titled-Tuesday-Blitz-June-18-2024"]
[Site "Chess.com"]
[Date "2024.06.18"]
[Round "10"]
[White "ulises2013"]
[Black "Rud_Makarian"]
[Result "0-1"]
[WhiteElo "2859"]
[BlackElo "3059"]
[TimeControl "180+1"]
[EndTime "9:56:32 PDT"]
[Termination "Rud_Makarian won by resignation"]

1. e4 {[%clk 0:02:58.8]} 1... c5 {[%clk 0:03:00]} 2. g3 {[%clk 0:02:56.2]} 2...
d5 {[%clk 0:02:53.3]} 3. exd5 {[%clk 0:02:57.1]} 3... Qxd5 {[%clk 0:02:41.1]} 4.
Nf3 {[%clk 0:02:57.1]} 4... Nc6 {[%clk 0:02:39.3]} 5. Bg2 {[%clk 0:02:56.1]}
5... g6 {[%clk 0:02:35.2]} 6. Nc3 {[%clk 0:02:52.9]} 6... Qd8 {[%clk 0:02:34.9]}
7. d3 {[%clk 0:02:43.1]} 7... Bg7 {[%clk 0:02:34.6]} 8. Be3 {[%clk 0:02:43.3]}
8... Nd4 {[%clk 0:02:34.7]} 9. h3 {[%clk 0:02:38.8]} 9... Nf6 {[%clk 0:02:32.7]}
10. O-O {[%clk 0:02:35.3]} 10... O-O {[%clk 0:02:32.6]} 11. Kh2 {[%clk
0:02:26.4]} 11... Re8 {[%clk 0:02:31]} 12. Ne4 {[%clk 0:02:10.3]} 12... Qc7
{[%clk 0:02:14.4]} 13. Nxd4 {[%clk 0:01:38.3]} 13... cxd4 {[%clk 0:02:11.7]} 14.
Bxd4 {[%clk 0:01:27.9]} 14... Nxe4 {[%clk 0:02:11.4]} 15. Bxg7 {[%clk
0:01:19.8]} 15... Nxg3 {[%clk 0:02:10.9]} 16. fxg3 {[%clk 0:01:19.7]} 16... Kxg7
{[%clk 0:02:11.3]} 17. d4 {[%clk 0:01:19]} 17... e5 {[%clk 0:02:03.4]} 18. dxe5
{[%clk 0:01:15]} 18... Qxe5 {[%clk 0:01:49]} 19. c3 {[%clk 0:01:06.1]} 19... Bf5
{[%clk 0:01:41]} 20. Qb3 {[%clk 0:00:50]} 20... Rad8 {[%clk 0:01:34.1]} 21. Rf2
{[%clk 0:00:25.6]} 21... Rd3 {[%clk 0:01:32]} 22. Qxb7 {[%clk 0:00:21.9]} 22...
Rxg3 {[%clk 0:01:10.3]} 23. Kg1 {[%clk 0:00:19.5]} 23... Re7 {[%clk 0:01:10.5]}
24. Qb4 {[%clk 0:00:15.4]} 24... Bxh3 {[%clk 0:01:03.7]} 25. Qh4 {[%clk
0:00:14.2]} 25... Bxg2 {[%clk 0:00:54.5]} 26. Rxg2 {[%clk 0:00:14.5]} 26... Qe3+
{[%clk 0:00:45.4]} 27. Kh2 {[%clk 0:00:14]} 27... Rxg2+ {[%clk 0:00:45.4]} 28.
Kxg2 {[%clk 0:00:14.9]} 28... Re4 {[%clk 0:00:45.5]} 0-1

[Event "Early-Titled-Tuesday-Blitz-June-18-2024"]
[Site "Chess.com"]
[Date "2024.06.18"]
[Round "10"]
[White "elis06"]
[Black "WindWhistler11"]
[Result "1-0"]
[WhiteElo "2368"]
[BlackElo "2519"]
[TimeControl "180+1"]
[EndTime "9:56:32 PDT"]
[Termination "elis06 won by resignation"]

1. d4 {[%clk 0:03:00.9]} 1... Nf6 {[%clk 0:02:55.9]} 2. c4 {[%clk 0:03:00.5]}
2... e6 {[%clk 0:02:56.3]} 3. Nc3 {[%clk 0:02:59.9]} 3... c5 {[%clk 0:02:57.2]}
4. d5 {[%clk 0:02:58.1]} 4... exd5 {[%clk 0:02:57.7]} 5. cxd5 {[%clk 0:02:58.9]}
5... Bd6 {[%clk 0:02:58.1]} 6. Nf3 {[%clk 0:02:57.3]} 6... O-O {[%clk
0:02:58.6]} 7. Bg5 {[%clk 0:02:46.4]} 7... Re8 {[%clk 0:02:59]} 8. e3 {[%clk
0:02:46.3]} 8... h6 {[%clk 0:02:55.9]} 9. Bh4 {[%clk 0:02:46.1]} 9... a6 {[%clk
0:02:54.7]} 10. Be2 {[%clk 0:02:46.1]} 10... b5 {[%clk 0:02:39.9]} 11. a3 {[%clk
0:02:43.1]} 11... Bf8 {[%clk 0:02:36]} 12. O-O {[%clk 0:02:41]} 12... d6 {[%clk
0:02:33.6]} 13. Rc1 {[%clk 0:02:38.4]} 13... Nbd7 {[%clk 0:02:28.6]} 14. Bd3
{[%clk 0:02:31.9]} 14... Qb6 {[%clk 0:02:11.5]} 15. e4 {[%clk 0:02:24.4]} 15...
b4 {[%clk 0:01:56.5]} 16. Na4 {[%clk 0:02:19.4]} 16... Qa5 {[%clk 0:01:55.7]}
17. axb4 {[%clk 0:02:13.8]} 17... cxb4 {[%clk 0:01:55.2]} 18. b3 {[%clk
0:02:13.4]} 18... Ng4 {[%clk 0:01:50.7]} 19. Nb2 {[%clk 0:02:07.4]} 19... Nge5
{[%clk 0:01:50.1]} 20. Nxe5 {[%clk 0:02:02.1]} 20... Nxe5 {[%clk 0:01:51]} 21.
f4 {[%clk 0:01:59.8]} 21... Qb6+ {[%clk 0:01:47]} 22. Bf2 {[%clk 0:01:55.5]}
22... Qd8 {[%clk 0:01:38]} 23. fxe5 {[%clk 0:01:55]} 23... Rxe5 {[%clk
0:01:38.4]} 24. Nc4 {[%clk 0:01:54]} 24... Rg5 {[%clk 0:01:37.8]} 25. Be3 {[%clk
0:01:46.2]} 25... Rg6 {[%clk 0:01:37.5]} 26. e5 {[%clk 0:01:43.9]} 26... f5
{[%clk 0:01:27.8]} 27. e6 {[%clk 0:01:28.2]} 27... Qf6 {[%clk 0:01:25.6]} 28.
Bxf5 {[%clk 0:01:25.4]} 28... Be7 {[%clk 0:01:19.8]} 29. Bd4 {[%clk 0:01:20.3]}
29... Qg5 {[%clk 0:01:18.4]} 30. Bxg6 {[%clk 0:01:19.9]} 30... Qxg6 {[%clk
0:01:19.3]} 31. Qf3 {[%clk 0:01:17.4]} 31... Bb7 {[%clk 0:01:15.6]} 32. Qf7+
{[%clk 0:01:15.6]} 32... Kh7 {[%clk 0:01:15]} 33. Qxg6+ {[%clk 0:01:15.4]} 33...
Kxg6 {[%clk 0:01:14.4]} 34. Rf7 {[%clk 0:01:13.9]} 34... Bg5 {[%clk 0:01:13.4]}
35. Rxg7+ {[%clk 0:01:03.1]} 35... Kh5 {[%clk 0:01:11.4]} 36. Rxb7 {[%clk
0:01:02.2]} 36... Bxc1 {[%clk 0:01:10.3]} 37. e7 {[%clk 0:01:02.1]} 37... Bg5
{[%clk 0:01:08.7]} 38. Nxd6 {[%clk 0:01:01.6]} 38... Bxe7 {[%clk 0:01:08.4]} 39.
Rxe7 {[%clk 0:01:01.7]} 39... Rd8 {[%clk 0:01:09.1]} 40. Bc5 {[%clk 0:00:59.4]}
40... Rf8 {[%clk 0:00:47.7]} 41. h3 {[%clk 0:00:57.9]} 41... Rf4 {[%clk
0:00:47.8]} 42. Re5+ {[%clk 0:00:57.3]} 42... Kg6 {[%clk 0:00:47.1]} 43. Re6+
{[%clk 0:00:57.1]} 43... Kg7 {[%clk 0:00:46.4]} 44. Nc4 {[%clk 0:00:55.6]} 44...
Rf5 {[%clk 0:00:39.2]} 45. Bd4+ {[%clk 0:00:53.8]} 45... Kf7 {[%clk 0:00:38.6]}
46. Nd6+ {[%clk 0:00:54]} 1-0

[Event "Early-Titled-Tuesday-Blitz-June-18-2024"]
[Site "Chess.com"]
[Date "2024.06.18"]
[Round "10"]
[White "MaxLeto"]
[Black "Sofia_Blokhin"]
[Result "1-0"]
[WhiteElo "2441"]
[BlackElo "2299"]
[TimeControl "180+1"]
[EndTime "9:56:32 PDT"]
[Termination "MaxLeto won by checkmate"]

1. a3 {[%clk 0:03:00.4]} 1... d5 {[%clk 0:02:59.6]} 2. b3 {[%clk 0:03:01.3]}
2... e5 {[%clk 0:02:59.5]} 3. c3 {[%clk 0:03:02.2]} 3... f5 {[%clk 0:02:58.5]}
4. d3 {[%clk 0:03:03.1]} 4... Nf6 {[%clk 0:02:58.7]} 5. e3 {[%clk 0:03:04]} 5...
Bd6 {[%clk 0:02:58.8]} 6. f3 {[%clk 0:03:04.9]} 6... c5 {[%clk 0:02:59.2]} 7. g3
{[%clk 0:03:05.8]} 7... O-O {[%clk 0:02:59.5]} 8. h3 {[%clk 0:03:06.7]} 8... Nc6
{[%clk 0:02:57.8]} 9. Ne2 {[%clk 0:03:06.9]} 9... Qc7 {[%clk 0:02:56.7]} 10. Rg1
{[%clk 0:02:58]} 10... b6 {[%clk 0:02:55.9]} 11. Bb2 {[%clk 0:02:54.9]} 11...
Re8 {[%clk 0:02:53.7]} 12. Nd2 {[%clk 0:02:55.1]} 12... Bb7 {[%clk 0:02:52.4]}
13. Qc2 {[%clk 0:02:55.3]} 13... Rad8 {[%clk 0:02:49.9]} 14. O-O-O {[%clk
0:02:55.3]} 14... b5 {[%clk 0:02:37.1]} 15. g4 {[%clk 0:02:55.2]} 15... fxg4
{[%clk 0:02:33.5]} 16. fxg4 {[%clk 0:02:43]} 16... b4 {[%clk 0:02:28.9]} 17.
axb4 {[%clk 0:02:11]} 17... cxb4 {[%clk 0:02:28]} 18. c4 {[%clk 0:02:11.9]}
18... dxc4 {[%clk 0:02:04.1]} 19. dxc4 {[%clk 0:02:12.8]} 19... a5 {[%clk
0:01:44.9]} 20. Ng3 {[%clk 0:02:10.2]} 20... a4 {[%clk 0:01:38.8]} 21. g5 {[%clk
0:02:05.6]} 21... Nd7 {[%clk 0:01:29.2]} 22. Bd3 {[%clk 0:01:55.1]} 22... Nf8
{[%clk 0:01:20.4]} 23. Nf5 {[%clk 0:01:43.9]} 23... axb3 {[%clk 0:01:06.2]} 24.
Nxb3 {[%clk 0:01:44.8]} 24... Na5 {[%clk 0:00:55.1]} 25. Nxa5 {[%clk 0:01:09.1]}
25... Qxa5 {[%clk 0:00:54.6]} 26. Nh6+ {[%clk 0:01:04.1]} 26... gxh6 {[%clk
0:00:38.7]} 27. gxh6+ {[%clk 0:01:05]} 27... Kh8 {[%clk 0:00:38.9]} 28. Rg7
{[%clk 0:01:05.5]} 28... Re7 {[%clk 0:00:12.5]} 29. Rdg1 {[%clk 0:01:05.5]}
29... Rxg7 {[%clk 0:00:07.8]} 30. hxg7+ {[%clk 0:01:06.4]} 30... Kg8 {[%clk
0:00:06.9]} 31. gxf8=Q+ {[%clk 0:01:06.2]} 31... Kxf8 {[%clk 0:00:07.4]} 32.
Bxh7 {[%clk 0:01:05.8]} 32... Ke7 {[%clk 0:00:06]} 33. Qf5 {[%clk 0:01:02.7]}
33... Rf8 {[%clk 0:00:05.4]} 34. Rg7+ {[%clk 0:01:02.5]} 34... Ke8 {[%clk
0:00:05]} 35. Bg6+ {[%clk 0:01:02.2]} 35... Kd8 {[%clk 0:00:03.3]} 36. Qd7#
{[%clk 0:01:02.8]} 1-0

[Event "Early-Titled-Tuesday-Blitz-June-18-2024"]
[Site "Chess.com"]
[Date "2024.06.18"]
[Round "10"]
[White "IndianSchoolOfSuffering"]
[Black "micke12a"]
[Result "1/2-1/2"]
[WhiteElo "2507"]
[BlackElo "2390"]
[TimeControl "180+1"]
[EndTime "9:56:34 PDT"]
[Termination "Game drawn by repetition"]

1. e4 {[%clk 0:03:00.9]} 1... c5 {[%clk 0:02:59.1]} 2. Nf3 {[%clk 0:02:59.6]}
2... d6 {[%clk 0:02:59.7]} 3. Bb5+ {[%clk 0:02:57.9]} 3... Bd7 {[%clk
0:02:59.1]} 4. a4 {[%clk 0:02:57.1]} 4... Nf6 {[%clk 0:02:58]} 5. d3 {[%clk
0:02:56.8]} 5... g6 {[%clk 0:02:53.3]} 6. c3 {[%clk 0:02:43.1]} 6... Bg7 {[%clk
0:02:52.6]} 7. O-O {[%clk 0:02:42.7]} 7... O-O {[%clk 0:02:51.9]} 8. h3 {[%clk
0:02:42.5]} 8... Nc6 {[%clk 0:02:49.4]} 9. Bf4 {[%clk 0:02:37]} 9... Rb8 {[%clk
0:02:45.7]} 10. Nbd2 {[%clk 0:02:30.1]} 10... a6 {[%clk 0:02:45.6]} 11. Bc4
{[%clk 0:02:29.9]} 11... b5 {[%clk 0:02:45.7]} 12. axb5 {[%clk 0:02:30]} 12...
axb5 {[%clk 0:02:46.6]} 13. Bb3 {[%clk 0:02:28.4]} 13... e5 {[%clk 0:02:47.2]}
14. Bg5 {[%clk 0:02:27.8]} 14... h6 {[%clk 0:02:45.9]} 15. Be3 {[%clk
0:02:26.6]} 15... Nh5 {[%clk 0:02:42.2]} 16. Bd5 {[%clk 0:02:11.8]} 16... Kh7
{[%clk 0:02:40]} 17. Ra6 {[%clk 0:02:09.7]} 17... Rb6 {[%clk 0:02:37.7]} 18.
Rxb6 {[%clk 0:02:09.6]} 18... Qxb6 {[%clk 0:02:37.3]} 19. b4 {[%clk 0:02:08.7]}
19... Nf4 {[%clk 0:02:31.3]} 20. bxc5 {[%clk 0:02:07.2]} 20... dxc5 {[%clk
0:02:28.9]} 21. Nb3 {[%clk 0:02:01.5]} 21... Nxd5 {[%clk 0:01:54.1]} 22. exd5
{[%clk 0:01:52.2]} 22... Ne7 {[%clk 0:01:52.2]} 23. Bxc5 {[%clk 0:01:46.1]}
23... Qf6 {[%clk 0:01:51.4]} 24. Nfd2 {[%clk 0:01:39.7]} 24... Rc8 {[%clk
0:01:48.4]} 25. Ne4 {[%clk 0:01:39.6]} 25... Qh4 {[%clk 0:01:45.1]} 26. g3
{[%clk 0:01:21.1]} 26... Qxh3 {[%clk 0:01:44.9]} 27. Bxe7 {[%clk 0:01:20.6]}
27... Bg4 {[%clk 0:01:39.4]} 28. f3 {[%clk 0:01:19.5]} 28... Bf5 {[%clk
0:01:39.8]} 29. Qe1 {[%clk 0:01:14.5]} 29... Bxe4 {[%clk 0:01:36.1]} 30. fxe4
{[%clk 0:01:10.8]} 30... Rxc3 {[%clk 0:01:36.6]} 31. Nc5 {[%clk 0:01:00.2]}
31... Rc2 {[%clk 0:01:31.7]} 32. Rf2 {[%clk 0:00:45.3]} 32... Qxg3+ {[%clk
0:01:25.4]} 33. Kf1 {[%clk 0:00:45.3]} 33... Qh3+ {[%clk 0:00:59.2]} 34. Kg1
{[%clk 0:00:45.2]} 34... Qg3+ {[%clk 0:00:29.7]} 35. Kf1 {[%clk 0:00:43.1]}
35... Qh3+ {[%clk 0:00:18.1]} 36. Kg1 {[%clk 0:00:42.5]} 36... Qg3+ {[%clk
0:00:18.7]} 1/2-1/2